[Event "76th Montenegro Championship 2024"]
[Site "Podgorica"]
[Date "2024.02.11"]
[Round "6.13"]
[White "Petrovic, Slavko"]
[Black "Drasko, Milan"]
[Result "0-1"]
[ECO "C04"]
[WhiteElo "1836"]
[BlackElo "2339"]
[Annotator "TA"]
[PlyCount "82"]
[EventDate "2024.02.06"]
[EventType "swiss"]
[EventCountry "MNE"]
[SourceTitle "playchess.com"]
[Source "ChessBase"]
[SourceQuality "1"]
[TimeControl "40/5400+30:1800+30"]

{[%evp 9,82,9,23,-21,-31,-35,-25,-35,-28,-25,-25,-31,-33,-30,-29,-41,-36,-50,-48,-55,-45,-48,-48,-128,-47,-74,-81,-80,-72,-106,-106,-141,-137,-131,-137,-135,-133,-135,-140,-143,-142,-144,-142,-150,-145,-155,-120,-155,-125,-175,-200,-211,-215,-218,-221,-250,-237,-236,-240,-242,-220,-219,-222,-306,-324,-516,-485,-29996,-780,-679,-847,-1250,-781,-699,-590]} 1. e4 {[%emt 0:07:06]} e6 {[%emt 0:00:17][%cal Be7e6,Be6e5][%mdl 32]} 2. d4 {[%emt 0:01:39]} d5 {[%emt 0:00:18]} 3. Nd2 {[%emt 0:00:21]} Nc6 {[%emt 0:01:40]} 4. c3 {[%emt 0:00:51]} e5 {[%emt 0:01:13]} 5. exd5 {[%emt 0:07:11]} Qxd5 {[%emt 0:00:09]} 6. Qf3 {[%emt 0:00:30]} Qxf3 {[%emt 0:02:43]} 7. Ngxf3 {[%emt 0:02:18]} exd4 {[%emt 0:00:17]} 8. Nxd4 {[%emt 0:00:21] Black has an edge.} Nxd4 {[%emt 0:01:00]} 9. cxd4 {[%emt 0:00:10]} Be6 {[%emt 0:04:03]} 10. Bc4 {[%emt 0:00:42]} Bxc4 {[%emt 0:05:41]} 11. Nxc4 {[%emt 0:00:30]} Ne7 {[%emt 0:01:00]} 12. Be3 {[%emt 0:02:45]} Nd5 {[%emt 0:01:07]} 13. a3 {[%emt 0:00:53]} Be7 {[%emt 0:02:06]} 14. Rc1 {[%emt 0:14:29]} O-O-O {[%emt 0:01:52]} 15. Ne5 {[%emt 0:01:21]} Rhf8 {[%emt 0:00:45]} 16. Nd3 {[%emt 0:12:06]} (16. O-O $15) 16... Bd6 {[%emt 0:02:12]} (16... Rfe8 $17 {And now ...Bg5 would win.} 17. Ne5 Bf6) 17. O-O {[%emt 0:00:56]} Rfe8 {[%emt 0:04:16] White is now going downhill.} 18. Rfe1 {[%emt 0:04:09]} Re4 {[%emt 0:05:55] Black is more active.} 19. Nc5 {[%emt 0:02:03]} Bxc5 {[%emt 0:18:28]} 20. Rxc5 {[%emt 0:03:05] [#]} Nxe3 $1 {[%emt 0:01:40]} 21. fxe3 {[%emt 0:02:24]} Rdxd4 $17 {[%emt 0:00:21][%mdl 4096] Endgame. KRR-KRR} 22. Rec1 {[%emt 0:03:32]} Rd7 {[%emt 0:00:36]} ({Don't play} 22... Rxe3 $6 23. Rxc7+ Kd8 24. Rxf7 $11 (24. Rxb7 Rd7 $11)) 23. Kf2 {[%emt 0:01:37]} c6 {[%emt 0:04:19]} 24. Kf3 {[%emt 0:01:32]} Re6 {[%emt 0:00:32]} 25. R1c2 {[%emt 0:04:09]} Rd3 {[%emt 0:01:42]} 26. Re2 {[%emt 0:00:23]} b6 {[%emt 0:02:00]} 27. Rc4 {[%emt 0:00:34]} Kc7 {[%emt 0:02:22]} 28. g4 {[%emt 0:02:29]} b5 {[%emt 0:03:25]} 29. Rc1 {[%emt 0:03:55]} (29. Rf4 $17 {was called for.}) 29... Kb6 $19 {[%emt 0:00:55]} 30. g5 {[%emt 0:00:59]} c5 {[%emt 0:04:04]} 31. Kf4 {[%emt 0:01:32]} c4 {[%emt 0:03:21]} 32. a4 {[%emt 0:00:35]} a6 {[%emt 0:00:50]} ({Not} 32... bxa4 33. Rxc4 Rd1 34. Rxa4 $11) 33. axb5 {[%emt 0:00:28]} axb5 {[%emt 0:00:05]} 34. Ra1 {[%emt 0:00:19]} f6 {[%emt 0:04:30] Strongly threatening ...fxg5+.} 35. h4 {[%emt 0:00:20]} Rd7 {[%emt 0:07:46]} 36. Ra8 {[%emt 0:02:45]} fxg5+ {[%emt 0:02:51]} 37. Kf5 {[%emt 0:03:30]} (37. hxg5 $142 Rf7+ 38. Kg4) 37... Rde7 {[%emt 0:04:23] ( -> ...Re4)} 38. hxg5 {[%emt 0:00:30]} (38. Kxg5 $19 Rxe3 39. Rxe3 Rxe3 40. h5) 38... Rxe3 {[%emt 0:00:22]} (38... Re4 $142 39. Rb8+ Kc7 40. Re8 g6+ 41. Kf6 R4e6#) 39. Rxe3 {[%emt 0:04:59] Black is clearly winning.} Rxe3 {[%emt 0:00:02]} 40. Rg8 {[%emt 0:00:00]} Re7 {[%emt 0:00:00]} 41. Rh8 {[%emt 0:01:49] [#]} h6 $1 {[%emt 0:05:55] Weighted Error Value: White=0.63/Black=0.39.  Mistake:       	White=4     	Black=2      Inaccurate:     	White=4     	---        OK:         	White=5     	Black=21     Best:        	White=2     	Black=1} 0-1

[Event "76th Montenegro Championship 2024"]
[Site "Podgorica"]
[Date "2024.02.11"]
[Round "6.14"]
[White "Miletic, Vuk"]
[Black "Ratkovic, Milorad"]
[Result "0-1"]
[ECO "D02"]
[WhiteElo "2213"]
[BlackElo "2063"]
[Annotator "NA RC"]
[PlyCount "72"]
[EventDate "2024.02.06"]
[EventType "swiss"]
[EventCountry "MNE"]
[SourceTitle "playchess.com"]
[Source "ChessBase"]
[SourceQuality "1"]
[TimeControl "40/5400+30:1800+30"]

1. d4 {[%emt 0:00:04]} d5 {[%emt 0:00:21]} 2. Nf3 {[%emt 0:00:47]} Bf5 {[%emt 0:00:56]} 3. Bf4 {[%emt 0:04:25]} e6 {[%emt 0:05:37]} 4. e3 {[%emt 0:05:54]} Bd6 {[%emt 0:01:19]} 5. Bg3 {[%emt 0:02:08]} Ne7 {[%emt 0:02:36]} 6. c4 {[%emt 0:03:08]} O-O {[%emt 0:18:53]} 7. Nc3 {[%emt 0:01:12]} c6 {[%emt 0:00:40]} 8. Qb3 {[%emt 0:02:10]} Bxg3 {[%emt 0:00:35]} 9. hxg3 {[%emt 0:00:09]} b6 {[%emt 0:04:06]} 10. Nh4 {[%emt 0:03:11]} Bg6 {[%emt 0:05:54]} 11. Nxg6 {[%emt 0:04:03]} Nxg6 {[%emt 0:02:30]} 12. Bd3 {[%emt 0:10:11]} Nd7 {[%emt 0:00:27]} 13. cxd5 {[%emt 0:02:10]} cxd5 {[%emt 0:00:26]} 14. f4 {[%emt 0:13:31]} Nf6 {[%emt 0:01:12]} 15. Qd1 {[%emt 0:01:40]} b5 {[%emt 0:10:24]} 16. Nxb5 {[%emt 0:09:30]} Rb8 {[%emt 0:00:25]} 17. Qe2 {[%emt 0:01:11]} Ne4 {[%emt 0:00:21]} 18. Bxe4 {[%emt 0:00:23]} dxe4 {[%emt 0:00:17]} 19. Nc3 {[%emt 0:01:15]} f5 {[%emt 0:01:54]} 20. Rc1 {[%emt 0:08:17]} Qb6 {[%emt 0:03:13]} 21. Rc2 {[%emt 0:01:34]} Ne7 {[%emt 0:01:48]} 22. O-O {[%emt 0:01:30]} Rfc8 {[%emt 0:05:52]} 23. Rfc1 {[%emt 0:01:43]} Qa5 {[%emt 0:01:51]} 24. g4 {[%emt 0:02:26]} fxg4 {[%emt 0:06:10]} 25. Nxe4 {[%emt 0:02:02]} Rxc2 {[%emt 0:00:26]} 26. Rxc2 {[%emt 0:00:37]} Nf5 {[%emt 0:03:28]} 27. Nc3 {[%emt 0:05:06]} h5 {[%emt 0:01:57]} 28. Qd3 {[%emt 0:01:10]} Qd8 {[%emt 0:00:31]} 29. Ne4 {[%emt 0:06:10]} Qa5 {[%emt 0:05:24]} 30. Nc3 {[%emt 0:02:15]} Rd8 {[%emt 0:09:22]} 31. Qe4 {[%emt 0:00:48]} Rd6 {[%emt 0:03:14]} 32. d5 {[%emt 0:04:59]} Qd8 {[%emt 0:02:00]} 33. Nb5 {[%emt 0:00:42]} Rxd5 {[%emt 0:00:20]} 34. Qxe6+ {[%emt 0:00:05]} Kh7 {[%emt 0:00:07]} 35. Nc3 {[%emt 0:01:02]} Rd1+ {[%emt 0:00:53]} 36. Kf2 {[%emt 0:00:13]} Qh4+ {[%emt 0:03:01]} 0-1

[Event "76th Montenegro Championship 2024"]
[Site "Podgorica"]
[Date "2024.02.11"]
[Round "6.15"]
[White "Scekic, Veljko"]
[Black "Kandic, Milojko"]
[Result "0-1"]
[ECO "A13"]
[WhiteElo "2206"]
[BlackElo "2046"]
[Annotator "NA RC"]
[PlyCount "52"]
[EventDate "2024.02.06"]
[EventType "swiss"]
[EventCountry "MNE"]
[SourceTitle "playchess.com"]
[Source "ChessBase"]
[SourceQuality "1"]
[TimeControl "40/5400+30:1800+30"]

1. Nf3 {[%emt 0:00:05]} d5 {[%emt 0:00:55]} 2. c4 {[%emt 0:00:07]} e6 {[%emt 0:00:14]} 3. b3 {[%emt 0:00:06]} Nf6 {[%emt 0:01:54]} 4. g3 {[%emt 0:00:10]} c5 {[%emt 0:00:57]} 5. Bg2 {[%emt 0:02:10]} d4 {[%emt 0:02:12]} 6. e3 {[%emt 0:02:02]} Nc6 {[%emt 0:01:16]} 7. d3 {[%emt 0:01:00]} dxe3 {[%emt 0:03:41]} 8. Bxe3 {[%emt 0:00:11]} e5 {[%emt 0:06:11]} 9. O-O {[%emt 0:03:17]} Bf5 {[%emt 0:03:00]} 10. Re1 {[%emt 0:01:20]} Ng4 {[%emt 0:15:27]} 11. Nh4 {[%emt 0:09:09]} Be6 {[%emt 0:12:29]} 12. Nc3 {[%emt 0:04:22]} Be7 {[%emt 0:02:05]} 13. Bd5 {[%emt 0:01:40]} Nxe3 {[%emt 0:01:46]} 14. Rxe3 {[%emt 0:00:45]} Bxh4 {[%emt 0:01:24]} 15. Bxc6+ {[%emt 0:03:28]} bxc6 {[%emt 0:01:23]} 16. gxh4 {[%emt 0:00:06]} Qxh4 {[%emt 0:02:30]} 17. Qf3 {[%emt 0:00:54]} O-O {[%emt 0:01:37]} 18. Rae1 {[%emt 0:00:27]} Qd4 {[%emt 0:07:07]} 19. Na4 {[%emt 0:01:29]} f6 {[%emt 0:09:55]} 20. Qxc6 {[%emt 0:30:51]} Bd7 {[%emt 0:00:20]} 21. Qa6 {[%emt 0:00:09]} f5 {[%emt 0:06:33]} 22. Qa5 {[%emt 0:03:29]} Rf6 {[%emt 0:05:51]} 23. Rg3 {[%emt 0:07:23]} f4 {[%emt 0:00:50]} 24. Rg5 {[%emt 0:00:26]} h6 {[%emt 0:01:37]} 25. Rg2 {[%emt 0:01:01]} Bc6 {[%emt 0:03:23]} 26. Qxc5 {[%emt 0:00:30]} Qxd3 {[%emt 0:01:22]} 0-1

[Event "76th Montenegro Championship 2024"]
[Site "Podgorica"]
[Date "2024.02.11"]
[Round "6.16"]
[White "Krstonijevic, Stjepan"]
[Black "Koljevic, Nikolina"]
[Result "0-1"]
[ECO "B31"]
[WhiteElo "2108"]
[BlackElo "1974"]
[Annotator "NA RC"]
[PlyCount "96"]
[EventDate "2024.02.06"]
[EventType "swiss"]
[EventCountry "MNE"]
[SourceTitle "playchess.com"]
[Source "ChessBase"]
[SourceQuality "1"]
[TimeControl "40/5400+30:1800+30"]

1. e4 {[%emt 0:02:42]} c5 {[%emt 0:00:13]} 2. Nf3 {[%emt 0:00:06]} Nc6 {[%emt 0:00:09]} 3. Bb5 {[%emt 0:00:17]} g6 {[%emt 0:00:13]} 4. O-O {[%emt 0:00:08]} Bg7 {[%emt 0:00:07]} 5. Re1 {[%emt 0:01:45]} e5 {[%emt 0:01:07]} 6. d3 {[%emt 0:01:24]} Nge7 {[%emt 0:01:08]} 7. Na3 {[%emt 0:01:02]} O-O {[%emt 0:04:52]} 8. Bg5 {[%emt 0:06:11]} h6 {[%emt 0:02:13]} 9. Bxe7 {[%emt 0:02:57]} Nxe7 {[%emt 0:03:26]} 10. Bc4 {[%emt 0:01:15]} d6 {[%emt 0:02:29]} 11. c3 {[%emt 0:00:25]} Bg4 {[%emt 0:01:32]} 12. h3 {[%emt 0:00:17]} Bxf3 {[%emt 0:00:35]} 13. Qxf3 {[%emt 0:00:04]} Kh7 {[%emt 0:01:08]} 14. Nc2 {[%emt 0:00:37]} f5 {[%emt 0:09:42]} 15. Ne3 {[%emt 0:20:23]} b5 {[%emt 0:07:54]} 16. Be6 {[%emt 0:25:59]} fxe4 {[%emt 0:19:40]} 17. Qxe4 {[%emt 0:00:08]} Rf6 {[%emt 0:01:33]} 18. Bb3 {[%emt 0:09:34]} Rf4 {[%emt 0:02:04]} 19. Qb7 {[%emt 0:00:04]} Rb8 {[%emt 0:01:45]} 20. Qxa7 {[%emt 0:02:24]} Nc6 {[%emt 0:04:31]} 21. Qa6 {[%emt 0:00:11]} Rb6 {[%emt 0:00:06]} 22. Qa3 {[%emt 0:00:05]} b4 {[%emt 0:01:35]} 23. cxb4 {[%emt 0:01:07]} Nxb4 {[%emt 0:00:13]} 24. Bd5 {[%emt 0:01:42]} Rd4 {[%emt 0:01:28]} 25. Bf3 {[%emt 0:05:09]} Rxd3 {[%emt 0:05:15]} 26. Qa7 {[%emt 0:00:27]} d5 {[%emt 0:01:52]} 27. a3 {[%emt 0:01:14]} Nc6 {[%emt 0:02:14]} 28. Qf7 {[%emt 0:00:19]} e4 {[%emt 0:03:50]} 29. Be2 {[%emt 0:00:33]} Rd2 {[%emt 0:01:39]} 30. Rab1 {[%emt 0:03:31]} Ne7 {[%emt 0:04:52]} 31. Ng4 {[%emt 0:03:07]} h5 {[%emt 0:01:26]} 32. Qf4 {[%emt 0:00:02]} Rbxb2 {[%emt 0:02:59]} 33. Nf6+ {[%emt 0:01:17]} Kh8 {[%emt 0:00:12]} 34. Rxb2 {[%emt 0:01:36]} Rxb2 {[%emt 0:00:31]} 35. Qg5 {[%emt 0:02:53]} Ng8 {[%emt 0:03:21]} 36. Nxe4 {[%emt 0:01:28]} Qxg5 {[%emt 0:02:17]} 37. Nxg5 {[%emt 0:00:13]} Bc3 {[%emt 0:00:03]} 38. Rc1 {[%emt 0:05:07]} Bf6 {[%emt 0:01:46]} 39. Rxc5 {[%emt 0:00:21]} Rxe2 {[%emt 0:03:59]} 40. Rxd5 {[%emt 0:00:00]} Bxg5 {[%emt 0:00:00]} 41. Rxg5 {[%emt 0:00:21]} Kg7 {[%emt 0:01:31]} 42. Ra5 {[%emt 0:05:23]} Ne7 {[%emt 0:02:00]} 43. h4 {[%emt 0:00:50]} Nc6 {[%emt 0:05:21]} 44. Ra6 {[%emt 0:01:29]} Ne5 {[%emt 0:00:30]} 45. Ra7+ {[%emt 0:00:24]} Kf6 {[%emt 0:00:52]} 46. Ra8 {[%emt 0:00:59]} Ng4 {[%emt 0:08:14]} 47. Rf8+ {[%emt 0:00:18]} Kg7 {[%emt 0:00:10]} 48. Rf4 {[%emt 0:00:40]} Re1# {[%emt 0:00:05]} 0-1

[Event "76th Montenegro Championship 2024"]
[Site "Podgorica"]
[Date "2024.02.11"]
[Round "6.17"]
[White "Nenezic, Danilo"]
[Black "Grbovic, Dino"]
[Result "1-0"]
[ECO "C78"]
[WhiteElo "2086"]
[BlackElo "1946"]
[Annotator "NA RC"]
[PlyCount "125"]
[EventDate "2024.02.06"]
[EventType "swiss"]
[EventCountry "MNE"]
[SourceTitle "playchess.com"]
[Source "ChessBase"]
[SourceQuality "1"]
[TimeControl "40/5400+30:1800+30"]

1. e4 {[%emt 0:02:03]} e5 {[%emt 0:00:10]} 2. Nf3 {[%emt 0:00:12]} Nc6 {[%emt 0:00:04]} 3. Bb5 {[%emt 0:00:15]} Nf6 {[%emt 0:00:09]} 4. d3 {[%emt 0:00:43]} Bc5 {[%emt 1:32:07]} 5. O-O d6 {[%emt 0:00:00]} 6. c3 {[%emt 1:30:17]} a6 {[%emt 0:00:00]} 7. Ba4 {[%emt 0:00:30]} b5 {[%emt 0:00:00]} 8. Bc2 {[%emt 0:00:00]} h6 {[%emt 0:00:00]} 9. Be3 {[%emt 0:00:00]} O-O {[%emt 0:02:30]} 10. h3 {[%emt 0:00:00]} Re8 {[%emt 0:00:00]} 11. Bxc5 {[%emt 0:00:00]} dxc5 {[%emt 0:00:00]} 12. Nbd2 {[%emt 0:00:00]} Qd6 {[%emt 0:00:00]} 13. a4 {[%emt 0:00:00]} Be6 {[%emt 0:00:00]} 14. Nh4 {[%emt 0:00:00]} g6 {[%emt 0:00:00]} 15. g4 {[%emt 0:00:00]} Rad8 {[%emt 0:00:00]} 16. Qf3 {[%emt 0:00:00]} Nh7 {[%emt 0:00:00]} 17. Rfd1 {[%emt 0:00:00]} Qe7 {[%emt 0:00:00]} 18. Qg3 {[%emt 0:00:00]} Rd6 {[%emt 0:00:00]} 19. Ng2 {[%emt 0:00:00]} Red8 {[%emt 0:00:00]} 20. f4 {[%emt 0:00:00]} Bc8 {[%emt 0:00:00]} 21. axb5 {[%emt 0:00:00]} axb5 {[%emt 0:00:00]} 22. Nf3 {[%emt 0:00:00]} f6 {[%emt 0:00:00]} 23. f5 {[%emt 0:00:00]} g5 {[%emt 0:00:00]} 24. Ne3 {[%emt 0:00:00]} Bb7 {[%emt 0:00:00]} 25. Nd5 {[%emt 0:00:00]} Qd7 {[%emt 0:00:00]} 26. Bb3 {[%emt 0:00:00]} Kh8 {[%emt 0:00:00]} 27. Qf2 {[%emt 0:00:00]} c4 {[%emt 0:00:00]} 28. dxc4 {[%emt 0:00:00]} bxc4 {[%emt 0:00:00]} 29. Ba4 {[%emt 0:00:00]} Qf7 {[%emt 0:00:00]} 30. Qc5 {[%emt 0:00:00]} Nb8 {[%emt 0:00:00]} 31. Qxc4 {[%emt 0:00:00]} Bxd5 {[%emt 0:00:00]} 32. exd5 {[%emt 0:00:00]} c6 {[%emt 0:00:56]} 33. Bb3 {[%emt 0:00:00]} cxd5 {[%emt 0:02:31]} 34. Qc5 {[%emt 0:00:05]} Qb7 {[%emt 0:01:45]} 35. Nd2 {[%emt 0:03:02]} Na6 {[%emt 0:01:10]} 36. Qf2 {[%emt 0:02:36]} d4 {[%emt 0:04:25]} 37. Nc4 {[%emt 0:04:22]} R6d7 {[%emt 0:01:21]} 38. Na5 {[%emt 0:00:12]} Qb6 {[%emt 0:00:52]} 39. Be6 {[%emt 0:05:43]} Rc7 {[%emt 0:01:20]} 40. Nc4 {[%emt 0:00:00]} Qb7 {[%emt 0:00:00]} 41. cxd4 {[%emt 0:00:00]} e4 {[%emt 0:06:07]} 42. Na5 {[%emt 0:01:10]} e3 {[%emt 0:08:57]} 43. Nxb7 {[%emt 0:05:53]} exf2+ {[%emt 0:00:03]} 44. Kxf2 {[%emt 0:00:23]} Rxb7 {[%emt 0:00:37]} 45. Rxa6 {[%emt 0:00:15]} Rxb2+ {[%emt 0:00:29]} 46. Kf3 {[%emt 0:00:44]} Nf8 {[%emt 0:04:21]} 47. Rd3 {[%emt 0:03:26]} Rb7 {[%emt 0:04:45]} 48. Ke4 {[%emt 0:00:54]} Re7 {[%emt 0:03:40]} 49. Rc3 {[%emt 0:05:27]} Nd7 {[%emt 0:01:02]} 50. Rc7 {[%emt 0:03:28]} h5 {[%emt 0:03:13]} 51. Raa7 {[%emt 0:00:39]} hxg4 {[%emt 0:01:00]} 52. hxg4 {[%emt 0:00:29]} Nc5+ {[%emt 0:02:23]} 53. Ke3 {[%emt 0:01:49]} Rxe6+ {[%emt 0:00:32]} 54. fxe6 {[%emt 0:00:58]} Nxe6 {[%emt 0:00:00]} 55. Rd7 {[%emt 0:00:55]} Rb8 {[%emt 0:00:53]} 56. Ke4 {[%emt 0:01:11]} Kg8 {[%emt 0:00:37]} 57. Kf5 {[%emt 0:01:00]} Nf8 {[%emt 0:00:26]} 58. Rg7+ {[%emt 0:01:19]} Kh8 {[%emt 0:00:03]} 59. Rgf7 {[%emt 0:01:51]} Kg8 {[%emt 0:00:52]} 60. Rxf6 {[%emt 0:02:30]} Kh8 {[%emt 0:00:36]} 61. Raf7 {[%emt 0:00:34]} Rb5+ {[%emt 0:00:22]} 62. Ke4 {[%emt 0:00:33]} Nh7 {[%emt 0:00:39]} 63. Rh6 {[%emt 0:00:17]} 1-0

[Event "76th Montenegro Championship 2024"]
[Site "Podgorica"]
[Date "2024.02.11"]
[Round "6.18"]
[White "Abramovic, Dragoljub"]
[Black "Lakusic, Zoran"]
[Result "1-0"]
[ECO "E11"]
[WhiteElo "2018"]
[BlackElo "1650"]
[Annotator "NA RC"]
[PlyCount "39"]
[EventDate "2024.02.06"]
[EventType "swiss"]
[EventCountry "MNE"]
[SourceTitle "playchess.com"]
[Source "ChessBase"]
[SourceQuality "1"]
[TimeControl "40/5400+30:1800+30"]

1. d4 {[%emt 0:00:11]} Nf6 {[%emt 0:12:23]} 2. c4 {[%emt 0:00:15]} e6 {[%emt 0:00:37]} 3. Nf3 {[%emt 0:00:16]} Bb4+ {[%emt 0:01:01]} 4. Bd2 {[%emt 0:00:06]} Bxd2+ {[%emt 0:01:00]} 5. Nbxd2 {[%emt 0:00:07]} b6 {[%emt 0:01:01]} 6. e4 {[%emt 0:00:17]} g6 {[%emt 0:05:21]} 7. e5 {[%emt 0:01:59]} Nh5 {[%emt 0:00:46]} 8. g4 {[%emt 0:00:28]} Ng7 {[%emt 0:04:16]} 9. Ne4 {[%emt 0:00:15]} h6 {[%emt 0:11:32]} 10. Nf6+ {[%emt 0:00:11]} Kf8 {[%emt 0:00:15]} 11. Bg2 {[%emt 0:02:25]} Bb7 {[%emt 0:11:32]} 12. O-O {[%emt 0:00:37]} Bxf3 {[%emt 0:10:51]} 13. Qxf3 {[%emt 0:00:34]} c6 {[%emt 0:00:07]} 14. d5 {[%emt 0:01:06]} Ne8 {[%emt 0:09:42]} 15. dxc6 {[%emt 0:02:07]} dxc6 {[%emt 0:00:17]} 16. Rad1 {[%emt 0:00:25]} Qc7 {[%emt 0:05:31]} 17. Nxe8 {[%emt 0:00:41]} Kxe8 {[%emt 0:00:10]} 18. Qf6 {[%emt 0:00:06]} Rg8 {[%emt 0:03:14]} 19. Rd6 {[%emt 0:00:21]} Qe7 {[%emt 0:00:51]} 20. Rfd1 {[%emt 1:28:03]} 1-0

[Event "76th Montenegro Championship 2024"]
[Site "Podgorica"]
[Date "2024.02.11"]
[Round "7.1"]
[White "Djukic, Nikola"]
[Black "Draskovic, Luka"]
[Result "1/2-1/2"]
[ECO "C60"]
[WhiteElo "2529"]
[BlackElo "2481"]
[Annotator "TA"]
[PlyCount "27"]
[EventDate "2024.02.06"]
[EventType "swiss"]
[EventCountry "MNE"]
[SourceTitle "playchess.com"]
[Source "ChessBase"]
[SourceQuality "1"]
[TimeControl "40/5400+30:1800+30"]

{[%evp 18,27,18,36,23,32,31,20,29,23,20,37]} 1. e4 {[%emt 0:00:22]} e5 {[%emt 0:00:05]} 2. Nf3 {[%emt 0:00:08]} Nc6 {[%emt 0:00:05]} 3. Bb5 {[%emt 0:00:17]} a6 {[%emt 0:00:06]} 4. Ba4 {[%emt 0:00:05]} d6 {[%emt 0:00:35]} 5. c3 {[%emt 0:00:27]} Bd7 {[%emt 0:00:35]} 6. d4 {[%emt 0:00:07]} Nf6 {[%emt 0:01:55]} 7. O-O {[%emt 0:01:46]} g6 {[%emt 0:02:38]} 8. Re1 {[%emt 0:00:30]} Bg7 {[%emt 0:00:44]} 9. Nbd2 {[%emt 0:00:20]} O-O {[%emt 0:00:55]} 10. h3 {[%emt 0:01:22]} exd4 {[%emt 0:01:20]} 11. cxd4 {[%emt 0:00:09]} Nb4 {[%emt 0:00:04]} 12. Bxd7 {[%emt 0:04:12]} Qxd7 {[%emt 0:00:44]} 13. Nf1 {[%emt 0:05:58]} c5 {[%emt 0:17:26]} 14. a3 {[%emt 0:09:30] An uneventful encounter.   Weighted Error Value: White=0.06 (flawless) /Black=0.00 (flawless) .  OK:         	White=1     	---} 1/2-1/2

[Event "76th Montenegro Championship 2024"]
[Site "Podgorica"]
[Date "2024.02.11"]
[Round "7.2"]
[White "Kadric, Denis"]
[Black "Petrov, Nikita"]
[Result "1/2-1/2"]
[ECO "C55"]
[WhiteElo "2584"]
[BlackElo "2563"]
[Annotator "TA"]
[PlyCount "36"]
[EventDate "2024.02.06"]
[EventType "swiss"]
[EventCountry "MNE"]
[SourceTitle "playchess.com"]
[Source "ChessBase"]
[SourceQuality "1"]
[TimeControl "40/5400+30:1800+30"]

{[%evp 11,36,11,18,16,27,-19,22,22,18,11,23,15,33,7,27,16,10,6,8,0,25,8,29,5,7,0,0]} 1. e4 {[%emt 0:00:42]} e5 {[%emt 0:00:23]} 2. Nf3 {[%emt 0:00:13]} Nc6 {[%emt 0:00:08]} 3. Bc4 {[%emt 0:00:03]} Nf6 {[%emt 0:00:19]} 4. d3 {[%emt 0:00:02]} Be7 {[%emt 0:00:16]} 5. O-O {[%emt 0:01:02]} O-O {[%emt 0:00:09]} 6. Nc3 {[%emt 0:00:02]} d6 {[%emt 0:00:26]} 7. a4 {[%emt 0:00:03]} a5 {[%emt 0:00:34]} 8. Ne2 {[%emt 0:07:00]} (8. Be3 $142) 8... Be6 {[%emt 0:03:55]} 9. Bxe6 {[%emt 0:01:00]} fxe6 {[%emt 0:00:07]} 10. Ng3 {[%emt 0:00:26]} h6 {[%emt 0:04:02]} 11. c3 {[%emt 0:00:34]} Qd7 {[%emt 0:19:21]} 12. Re1 {[%emt 0:05:56]} Rad8 {[%emt 0:02:16]} 13. h3 {[%emt 0:05:21]} b6 {[%emt 0:01:17]} 14. Qb3 {[%emt 0:02:43]} Nh7 {[%emt 0:02:03][%cal Bf6h7,Bh7f8,Bf8g6][%mdl 32]} 15. Be3 {[%emt 0:03:12]} Rf7 {[%emt 0:06:32]} 16. Qb5 {[%emt 0:01:30]} Nf8 {[%emt 0:03:02]} 17. Rac1 {[%emt 0:02:26]} Ng6 {[%emt 0:02:43][%cal Of7f3]} 18. Red1 {[%emt 0:10:06]} d5 {[%emt 0:03:45] Not much happened in this game.   Weighted Error Value: White=0.12 (very precise) /Black=0.14 (very precise) .  Mistake:       	White=1     	---        Inaccurate:     	White=1     	Black=1      OK:         	White=2     	Black=2} 1/2-1/2